bitfinex/quotes_BTCUSD_20241216
["timestamp","ask_amount","ask_price","bid_price","bid_amount"]
[1734358311394,0.1770907,104040.0,104030.0,0.14478819]
[1734358311594,0.0942907,104040.0,104030.0,0.03845]
[1734358311934,0.09549219,104040.0,104030.0,0.03845]
[1734358312732,0.0942907,104040.0,104030.0,0.03845]
[1734358313739,0.0942907,104040.0,104030.0,0.14478819]
[1734358316755,0.0942907,104040.0,104030.0,0.019225]
[1734358316894,0.0942907,104040.0,104030.0,0.0193976]
[1734358317822,0.0942907,104040.0,104030.0,0.12573579]
[1734358318019,0.00025468,104050.0,104030.0,0.45084863]
[1734358318252,0.00025468,104050.0,104040.0,0.27556119]
[1734358320043,0.00025468,104050.0,104040.0,0.51673811]
[1734358320241,0.00025468,104050.0,104040.0,0.9888151]
[1734358320512,0.00025468,104050.0,104040.0,0.90305979]
[1734358321433,0.00025468,104050.0,104040.0,0.38189938]
[1734358321576,0.00025468,104050.0,104040.0,0.82853124]
[1734358321982,0.00025468,104050.0,104040.0,0.91429438]
[1734358322183,0.00025468,104050.0,104040.0,0.82853124]
[1734358322794,0.00025468,104050.0,104040.0,0.91430247]
[1734358322997,0.00025468,104050.0,104040.0,0.79014224]
[1734358323222,0.00025468,104050.0,104040.0,0.87591359]
[1734358324421,0.00025468,104050.0,104040.0,0.66150482]
[1734358324617,0.00025468,104050.0,104040.0,0.87591359]
[1734358324853,0.00025468,104050.0,104040.0,0.4899778]
[1734358325086,0.08235468,104050.0,104040.0,0.4899778]
[1734358325289,0.17664538,104050.0,104040.0,0.38363961]
[1734358325431,0.17664538,104050.0,104040.0,0.4899778]
[1734358325637,0.17664538,104050.0,104040.0,0.36133254]
[1734358326083,0.00025468,104050.0,104040.0,0.59631599]
[1734358326285,0.00025468,104050.0,104040.0,0.87591359]
[1734358326716,0.00025468,104050.0,104040.0,0.79014224]
[1734358326869,0.00025468,104050.0,104040.0,0.87593113]
[1734358327356,0.00025468,104050.0,104040.0,0.99481573]
[1734358327584,0.09773903,104070.0,104050.0,0.15]
[1734358327780,0.09773903,104070.0,104060.0,0.27555719]
[1734358327781,0.19202973,104070.0,104060.0,0.27555719]
[1734358328883,0.19202973,104070.0,104060.0,0.169219]
[1734358329814,0.19323088,104070.0,104060.0,0.169219]
[1734358330513,0.19323088,104070.0,104050.0,0.25289977]
[1734358330755,0.19202973,104070.0,104050.0,0.03844]
[1734358331027,0.00120126,104060.0,104050.0,0.01922]
[1734358331770,0.00120126,104060.0,104050.0,0.16922]
[1734358332825,0.08370126,104060.0,104050.0,0.16922]
[1734358334395,0.22509196,104060.0,104050.0,0.15]
[1734358334636,0.2238907,104060.0,104050.0,0.169221]
[1734358335194,0.0825,104060.0,104050.0,0.169221]
[1734358335404,0.0825,104060.0,104050.0,0.27555919]
[1734358337220,0.0825,104060.0,104050.0,0.29478119]
[1734358338162,0.0825,104060.0,104050.0,0.188443]
[1734358338594,0.0825,104060.0,104050.0,0.29478119]
[1734358339089,0.09794029,104070.0,104060.0,0.038439]
[1734358339292,0.19223099,104070.0,104060.0,0.038439]
[1734358339491,0.09931637,104070.0,104060.0,0.14477719]
[1734358339709,0.09931637,104070.0,104060.0,0.038439]
[1734358340764,0.09931637,104070.0,104050.0,0.23718771]
[1734358340964,0.09931637,104070.0,104050.0,0.22183579]
[1734358341113,8.63e-05,104060.0,104050.0,0.18339279]
[1734358341317,8.63e-05,104060.0,104050.0,0.18435371]
[1734358341839,0.07552533,104070.0,104050.0,0.18435371]
[1734358342040,0.07552533,104070.0,104060.0,0.038439]
[1734358345464,0.16981603,104070.0,104060.0,0.038439]
[1734358345670,0.17101718,104070.0,104060.0,0.038439]
[1734358347169,0.09549185,104070.0,104050.0,0.2654956]
[1734358347400,0.21979207,104060.0,104050.0,0.0001726]
[1734358347611,0.2185907,104060.0,104050.0,0.06195172]
[1734358347821,0.2185907,104060.0,104050.0,0.0386156]
[1734358348752,0.1,104070.0,104050.0,0.33654797]
[1734358348753,0.1307,104070.0,104050.0,0.33654797]
[1734358348959,0.22619188,104070.0,104060.0,0.038439]
[1734358349171,0.2249907,104070.0,104060.0,0.038439]
[1734358349374,0.22755914,104070.0,104060.0,0.038439]
[1734358351695,0.09685914,104070.0,104060.0,0.038439]
[1734358352134,0.09806032,104070.0,104060.0,0.038439]
[1734358352352,0.09814662,104070.0,104060.0,0.038439]
[1734358354547,0.17644662,104070.0,104060.0,0.038439]
[1734358355784,0.22334662,104070.0,104060.0,0.038439]
[1734358355998,0.22214544,104070.0,104060.0,0.038439]
[1734358356329,0.22214544,104070.0,104060.0,0.12420625]
[1734358357593,0.22214544,104070.0,104060.0,0.25285713]
[1734358358116,0.22214544,104070.0,104060.0,0.25331703]
[1734358360580,0.22214544,104070.0,104060.0,0.42521945]
[1734358362224,0.22214544,104070.0,104060.0,0.25331703]
[1734358362464,0.22214544,104070.0,104060.0,0.42521945]
[1734358363312,0.22214544,104070.0,104060.0,0.64026988]
[1734358363795,0.22214544,104070.0,104060.0,0.38695285]
[1734358364046,0.22214544,104070.0,104060.0,0.21505043]
[1734358364293,0.22214544,104070.0,104060.0,0.25348943]
[1734358365114,0.22214544,104070.0,104060.0,0.21505043]
[1734358365341,0.22214544,104070.0,104060.0,0.25348943]
[1734358365964,0.22214544,104070.0,104060.0,0.42539185]
[1734358366165,0.17524544,104070.0,104060.0,0.42539185]
[1734358366343,0.17814829,104070.0,104060.0,0.42539185]
[1734358366544,0.17814829,104070.0,104050.0,0.63938708]
[1734358366803,0.17814829,104070.0,104060.0,0.038439]
[1734358366930,0.17387823,104070.0,104060.0,0.038439]
[1734358369010,0.17815055,104070.0,104060.0,0.038439]
[1734358369952,0.37032955,104070.0,104050.0,0.56965259]
[1734358370194,0.00120126,104060.0,104050.0,0.3827038]
[1734358371093,0.09549196,104060.0,104050.0,0.3827038]
[1734358371528,0.09549196,104060.0,104050.0,0.39790972]
[1734358371672,0.09549196,104060.0,104050.0,0.3827038]
[1734358373734,0.21949196,104060.0,104050.0,0.12936433]
[1734358373992,0.4604867,104060.0,104050.0,0.0001726]
[1734358374410,0.55466196,104060.0,104050.0,0.0001726]
[1734358374611,0.4604867,104060.0,104050.0,0.0001726]
[1734358380843,0.4604867,104060.0,104040.0,0.07094256]
[1734358381039,0.09549217,104050.0,104040.0,0.07094256]
[1734358381242,0.09549217,104050.0,104040.0,0.03965207]
[1734358381689,0.09549217,104050.0,104040.0,0.038444]
[1734358386649,0.17439217,104050.0,104040.0,0.038444]
[1734358387302,0.17439217,104050.0,104040.0,0.0386166]
[1734358387709,0.17447847,104050.0,104040.0,0.0386166]
[1734358387912,0.24421296,104050.0,104040.0,0.0001726]
[1734358388142,0.53432649,104050.0,104040.0,0.0001726]
[1734358388352,1.52999875,104050.0,104040.0,0.0001726]
[1734358388698,1.47999875,104050.0,104040.0,0.0001726]
[1734358389308,1.48421881,104050.0,104040.0,0.0001726]
[1734358389558,1.50931195,104050.0,104040.0,0.0001726]
[1734358390370,1.53237187,104050.0,104040.0,0.0001726]
[1734358391139,1.53045919,104050.0,104040.0,0.0001726]
[1734358391921,0.242241,104040.0,104020.0,0.14198469]
[1734358392138,0.0942907,104030.0,104020.0,0.14198469]
[1734358392378,0.0942907,104030.0,104020.0,0.08725598]
[1734358392626,1.22185442,104050.0,104030.0,0.076896]
[1734358392870,0.09549221,104040.0,104030.0,0.076896]
[1734358399303,0.09549221,104040.0,104030.0,0.0770686]
[1734358399541,0.09557851,104040.0,104030.0,0.0770686]
[1734358399752,0.09557851,104040.0,104030.0,0.09757195]
[1734358402390,0.09996822,104040.0,104030.0,0.09757195]
[1734358404044,0.09876671,104040.0,104030.0,0.0386206]
[1734358404285,0.09996826,104040.0,104030.0,0.0386206]
[1734358404461,0.09557855,104040.0,104030.0,0.0386206]
[1734358404664,0.0999669,104040.0,104030.0,0.0386206]
[1734358404876,0.3694999,104040.0,104030.0,0.0001726]
[1734358405093,0.41829835,104040.0,104030.0,0.0001726]
[1734358406121,0.45681596,104040.0,104030.0,0.0001726]
[1734358406322,0.41829835,104040.0,104030.0,0.0001726]
[1734358406732,0.46509835,104040.0,104030.0,0.0001726]
[1734358412201,0.65734235,104040.0,104010.0,0.076911]
[1734358412402,0.0012017,104030.0,104020.0,0.038453]
[1734358412605,0.0954924,104030.0,104020.0,0.038453]
[1734358413177,0.0954924,104030.0,104020.0,0.05345917]
[1734358414399,0.0954924,104030.0,104010.0,0.02148381]
[1734358414625,0.0954924,104030.0,104020.0,0.05345917]
[1734358415246,0.0954924,104030.0,104020.0,0.07561018]
[1734358415247,0.07414254,104030.0,104020.0,0.07561018]
[1734358416647,8.63e-05,104040.0,104030.0,0.18845]
[1734358416871,8.63e-05,104040.0,104030.0,0.44322676]
[1734358417079,8.63e-05,104040.0,104030.0,0.57206449]
[1734358417283,8.63e-05,104040.0,104030.0,0.88523883]
[1734358417535,8.63e-05,104040.0,104030.0,1.09996839]
[1734358417659,8.63e-05,104040.0,104030.0,0.88523883]
[1734358418090,8.63e-05,104040.0,104030.0,0.97113066]
[1734358418890,8.63e-05,104040.0,104030.0,0.94103502]
[1734358420097,8.63e-05,104040.0,104030.0,0.90772936]
[1734358421260,8.63e-05,104040.0,104030.0,0.90750588]
[1734358422657,8.63e-05,104040.0,104030.0,0.90767848]
[1734358422865,8.63e-05,104040.0,104030.0,0.81158728]
[1734358423066,8.63e-05,104040.0,104030.0,0.72572791]
[1734358423401,8.63e-05,104040.0,104030.0,0.83174177]
[1734358423605,8.63e-05,104040.0,104030.0,0.74590873]
[1734358424422,8.63e-05,104040.0,104030.0,0.96051413]
[1734358425744,8.63e-05,104040.0,104030.0,0.8317681]
[1734358425965,8.63e-05,104040.0,104030.0,0.83168512]
[1734358427342,8.63e-05,104040.0,104030.0,0.87008112]
[1734358427736,8.63e-05,104040.0,104030.0,0.87711226]
[1734358427944,8.63e-05,104040.0,104030.0,0.70128512]
[1734358428149,8.63e-05,104040.0,104030.0,0.83001247]
[1734358428578,8.63e-05,104040.0,104030.0,0.7494176]
[1734358428988,8.63e-05,104040.0,104030.0,0.87813666]
[1734358429104,8.63e-05,104040.0,104030.0,0.87690418]
[1734358429512,8.63e-05,104040.0,104030.0,0.83000418]
[1734358429730,8.63e-05,104040.0,104030.0,0.72372922]
[1734358429939,8.63e-05,104040.0,104030.0,0.80954549]
[1734358430138,8.63e-05,104040.0,104030.0,0.59498619]
[1734358430536,8.63e-05,104040.0,104030.0,0.70129201]
[1734358432869,8.63e-05,104040.0,104030.0,0.91585514]
[1734358433431,8.63e-05,104040.0,104030.0,0.91583692]
[1734358433640,8.63e-05,104040.0,104030.0,0.7012803]
[1734358434969,8.63e-05,104040.0,104030.0,0.59500534]
[1734358435216,0.170177,104040.0,104030.0,0.21472922]
[1734358435421,0.46181,104040.0,104030.0,0.0001726]
[1734358437335,0.51181,104040.0,104030.0,0.0001726]
[1734358437526,0.46181,104040.0,104030.0,0.0001726]
[1734358437739,0.54108496,104040.0,104030.0,0.0001726]
[1734358437946,0.63526022,104040.0,104030.0,0.0001726]
[1734358438366,0.52898526,104040.0,104030.0,0.0001726]
[1734358441569,0.46181,104040.0,104030.0,0.0001726]
[1734358441840,0.51181,104040.0,104030.0,0.0001726]
[1734358442250,0.46181,104040.0,104030.0,0.0001726]
[1734358442449,0.51181,104040.0,104030.0,0.0001726]
[1734358443388,0.219577,104040.0,104030.0,0.0386226]
[1734358443805,0.170177,104040.0,104030.0,0.0386226]
[1734358445324,8.63e-05,104040.0,104030.0,0.0386226]
[1734358446387,8.63e-05,104040.0,104030.0,0.14489756]
[1734358447251,8.63e-05,104040.0,104030.0,0.0386226]
[1734358449121,8.63e-05,104040.0,104030.0,0.06473699]
[1734358453671,8.63e-05,104040.0,104030.0,0.29581195]
[1734358459867,8.63e-05,104040.0,104030.0,0.30615344]
[1734358460024,8.63e-05,104040.0,104030.0,0.25675344]
[1734358460227,8.63e-05,104040.0,104030.0,0.17101195]
[1734358460633,8.63e-05,104040.0,104030.0,0.25675344]
[1734358460831,0.0760863,104040.0,104030.0,0.15047848]
[1734358461407,0.0760863,104040.0,104030.0,0.15050084]
[1734358462815,8.63e-05,104040.0,104030.0,0.2567758]
[1734358463020,8.63e-05,104040.0,104030.0,0.70727015]
[1734358464649,8.63e-05,104040.0,104030.0,0.70694929]
[1734358466831,8.63e-05,104040.0,104030.0,0.92135893]
[1734358468186,8.63e-05,104040.0,104030.0,0.99975893]
[1734358468885,8.63e-05,104040.0,104030.0,0.91399508]
[1734358470471,8.63e-05,104040.0,104030.0,0.7853493]
[1734358471669,8.63e-05,104040.0,104030.0,0.72939641]
[1734358471983,8.63e-05,104040.0,104030.0,0.81521942]
[1734358472184,8.63e-05,104040.0,104030.0,0.72939641]
[1734358472348,8.63e-05,104040.0,104030.0,0.81522941]
[1734358472559,8.63e-05,104040.0,104030.0,0.60081977]
[1734358473158,8.63e-05,104040.0,104030.0,0.70709473]
[1734358480007,8.63e-05,104040.0,104030.0,0.7073826]
[1734358482015,8.63e-05,104040.0,104030.0,0.67086721]
[1734358482215,8.63e-05,104040.0,104030.0,0.89051758]
[1734358483304,8.63e-05,104040.0,104030.0,0.80465744]
[1734358485303,8.63e-05,104040.0,104030.0,0.67586722]
[1734358487795,8.63e-05,104040.0,104030.0,0.3371993]
[1734358487994,8.63e-05,104040.0,104030.0,0.3756493]
[1734358488397,8.63e-05,104040.0,104030.0,0.59029967]
[1734358489392,8.63e-05,104040.0,104030.0,0.46131929]
[1734358490082,8.63e-05,104040.0,104030.0,0.61131929]
[1734358490861,8.63e-05,104040.0,104030.0,0.61149189]
[1734358492097,8.63e-05,104040.0,104030.0,0.64323859]
[1734358494119,8.63e-05,104040.0,104030.0,0.50977924]
[1734358495818,8.63e-05,104040.0,104030.0,0.44001967]
[1734358496061,8.63e-05,104040.0,104030.0,0.61222674]
[1734358496307,8.63e-05,104040.0,104030.0,0.68198631]
[1734358497968,8.63e-05,104040.0,104030.0,0.55270931]
[1734358498953,8.63e-05,104040.0,104030.0,0.55352955]
[1734358499675,8.63e-05,104040.0,104030.0,0.51048447]
[1734358499913,8.63e-05,104040.0,104030.0,0.55352955]
[1734358500435,8.63e-05,104040.0,104030.0,0.29512887]
[1734358500690,8.63e-05,104040.0,104030.0,0.55352955]
[1734358501164,8.63e-05,104040.0,104030.0,0.55353374]
[1734358501622,0.0756863,104040.0,104030.0,0.55353374]
[1734358502055,0.1236863,104040.0,104030.0,0.48377417]
[1734358502269,0.1236863,104040.0,104030.0,0.44072405]
[1734358502477,0.1236863,104040.0,104030.0,0.61301158]
[1734358502687,0.1236863,104040.0,104030.0,0.44072405]
[1734358504372,0.1236863,104040.0,104030.0,0.51048362]
[1734358504788,0.1236863,104040.0,104030.0,0.68276073]
[1734358505177,0.1236863,104040.0,104030.0,0.51048362]
[1734358506060,0.0756863,104040.0,104030.0,0.51946292]
[1734358506265,0.0756863,104040.0,104030.0,0.29512887]
[1734358506472,0.0756863,104040.0,104030.0,0.2253693]
[1734358506680,0.0756863,104040.0,104030.0,0.29512887]
[1734358506891,0.0756863,104040.0,104030.0,0.55351013]
[1734358511108,0.0756863,104040.0,104030.0,0.55343539]
[1734358511310,0.0756863,104040.0,104030.0,0.51041935]
[1734358511514,0.0756863,104040.0,104030.0,0.47776033]
[1734358511941,0.0756863,104040.0,104030.0,0.51621033]
[1734358513044,0.1245863,104040.0,104030.0,0.44645076]
[1734358513963,0.1245863,104040.0,104030.0,0.59662336]
[1734358515405,0.1245863,104040.0,104030.0,0.72580789]
[1734358515661,0.1245863,104040.0,104030.0,0.72581163]
[1734358517541,0.1245863,104040.0,104030.0,0.44665606]
[1734358517747,0.1245863,104040.0,104030.0,0.510521]
[1734358518190,0.1245863,104040.0,104030.0,0.59665234]
[1734358519248,0.1245863,104040.0,104030.0,0.42441984]
[1734358519463,0.1245863,104040.0,104030.0,0.59665234]
[1734358520296,0.1245863,104040.0,104030.0,0.29528373]
[1734358520504,0.1245863,104040.0,104030.0,0.27455899]
[1734358521570,0.1245863,104040.0,104030.0,0.57620126]
[1734358521777,0.1245863,104040.0,104030.0,0.66237855]
[1734358522221,0.1245863,104040.0,104030.0,0.44691979]
[1734358522838,0.1245863,104040.0,104030.0,0.66237855]
[1734358523193,0.1245863,104040.0,104030.0,0.44691979]
[1734358525105,0.1245863,104040.0,104030.0,0.44681316]
[1734358526113,0.57504483,104040.0,104030.0,0.0001726]
[1734358526313,0.62504483,104040.0,104030.0,0.0001726]
[1734358526927,0.0792,104020.0,104010.0,0.27881668]
[1734358527351,0.0792,104020.0,104010.0,0.33803504]
[1734358527556,0.0792,104020.0,104010.0,0.40779461]
[1734358527968,0.3657607,104020.0,104010.0,0.26112304]
[1734358528175,0.3657607,104020.0,104010.0,0.17496461]
[1734358528397,0.3657607,104020.0,104010.0,0.22821146]
[1734358528599,0.3657607,104020.0,104010.0,0.21300554]
[1734358529385,0.3657607,104020.0,104010.0,0.19799899]
[1734358530588,0.3657607,104020.0,104010.0,0.05100062]
[1734358530802,0.3657607,104020.0,104010.0,0.04799899]
[1734358531617,0.4145607,104020.0,104010.0,0.00995806]
[1734358531832,0.4145607,104020.0,104010.0,0.01295971]
[1734358534621,0.4645607,104020.0,104010.0,0.01295971]
[1734358535629,0.4645607,104020.0,104010.0,0.01195971]
[1734358536269,0.55873596,104020.0,104010.0,0.01195971]
[1734358536481,0.62849553,104020.0,104010.0,0.01195971]
[1734358536687,0.62849553,104020.0,104010.0,0.00317425]
[1734358536896,0.4645607,104020.0,104010.0,0.00317425]
[1734358537102,0.464647,104020.0,104010.0,0.00317425]
[1734358539754,0.464647,104020.0,104010.0,0.00317442]
[1734358540189,0.464647,104020.0,104010.0,0.0001726]
[1734358540601,0.464647,104020.0,104010.0,0.00317442]
[1734358542274,0.464647,104020.0,104010.0,0.7501726]
[1734358542489,0.53440657,104020.0,104010.0,0.7501726]
[1734358542695,0.62858183,104020.0,104010.0,0.7501726]
[1734358544083,0.464647,104020.0,104010.0,0.7501726]
[1734358545087,0.53440657,104020.0,104010.0,0.7501726]
[1734358546827,0.48440657,104020.0,104010.0,0.7501726]
[1734358550291,0.55416614,104020.0,104010.0,0.7501726]
[1734358550489,0.59410509,104020.0,104010.0,0.7501726]
[1734358550704,0.61852078,104020.0,104010.0,0.7501726]
[1734358551151,0.64152078,104020.0,104010.0,0.7501726]
[1734358551574,0.222377,104020.0,104010.0,0.7501726]
[1734358551777,0.272377,104020.0,104010.0,0.79163171]
[1734358551984,0.272377,104020.0,104010.0,0.75317471]
[1734358552200,0.464647,104020.0,104010.0,0.75317471]
[1734358552719,0.464647,104020.0,104010.0,0.7501726]
[1734358553112,0.464647,104020.0,104010.0,0.75617608]
[1734358554635,0.414647,104020.0,104010.0,0.75617608]
[1734358554846,0.222377,104020.0,104010.0,0.75617608]
[1734358555049,0.272377,104020.0,104010.0,0.75617608]
[1734358555256,0.222377,104020.0,104010.0,0.75617608]
[1734358555660,0.414647,104020.0,104010.0,0.75617608]
[1734358556085,0.222377,104020.0,104010.0,0.75617608]
[1734358556674,0.464647,104020.0,104010.0,0.75617608]
[1734358557040,0.464647,104020.0,104010.0,0.75317434]
[1734358558315,0.55882226,104020.0,104010.0,0.75317434]
[1734358558921,0.62858183,104020.0,104010.0,0.75317434]
[1734358559121,0.55882226,104020.0,104010.0,0.75317434]
[1734358559325,0.53440657,104020.0,104010.0,0.7531745]
[1734358561556,0.53440657,104020.0,104010.0,0.7501726]
[1734358561764,0.53440657,104020.0,104010.0,0.75317462]
[1734358562394,0.50740657,104020.0,104010.0,0.75317462]
[1734358562609,0.60158183,104020.0,104010.0,0.75317462]
[1734358564709,0.6713414,104020.0,104010.0,0.75317462]
[1734358564928,0.7213414,104020.0,104010.0,0.75317464]
[1734358565565,0.65158183,104020.0,104010.0,0.75317464]
[1734358567261,0.69077177,104020.0,104010.0,0.75317464]
[1734358567696,0.69077177,104020.0,104010.0,0.7501726]
[1734358567904,0.69077177,104020.0,104010.0,0.75317477]
[1734358569385,0.69077177,104020.0,104010.0,0.7501726]
[1734358570010,0.69077177,104020.0,104010.0,0.7531748]
[1734358570466,0.31156694,104020.0,104010.0,0.7501726]
[1734358570676,0.094377,104020.0,104010.0,0.85838917]
[1734358570925,8.63e-05,104020.0,104010.0,0.94443004]
[1734358571148,8.63e-05,104020.0,104010.0,0.94447406]
[1734358571365,8.63e-05,104020.0,104010.0,1.07360139]
[1734358571798,8.63e-05,104020.0,104010.0,0.87471449]
[1734358573716,8.63e-05,104020.0,104010.0,1.00384182]
[1734358578372,8.63e-05,104020.0,104010.0,1.00380528]
[1734358579030,8.63e-05,104020.0,104010.0,1.15380528]
[1734358581158,8.63e-05,104020.0,104010.0,1.26017133]
[1734358583991,8.63e-05,104020.0,104010.0,1.13106592]
[1734358584611,8.63e-05,104020.0,104010.0,1.26017133]
[1734358587621,8.63e-05,104020.0,104010.0,1.25995748]
[1734358589657,8.63e-05,104020.0,104010.0,1.13098038]
[1734358590025,8.63e-05,104020.0,104010.0,1.25995748]
[1734358590443,8.63e-05,104020.0,104010.0,1.13098038]
[1734358591042,8.63e-05,104020.0,104010.0,1.25995748]
[1734358591294,8.63e-05,104020.0,104010.0,1.13098038]
[1734358592121,8.63e-05,104020.0,104010.0,1.09440814]
[1734358593417,8.63e-05,104020.0,104010.0,1.24260195]
[1734358593623,8.63e-05,104020.0,104010.0,1.59244852]
[1734358594032,8.63e-05,104020.0,104010.0,1.52265471]
[1734358594156,8.63e-05,104020.0,104010.0,1.59244852]
[1734358597099,8.63e-05,104020.0,104010.0,1.59224102]
[1734358600013,8.63e-05,104020.0,104010.0,1.80708758]
[1734358600226,8.63e-05,104020.0,104010.0,1.59224102]
[1734358600520,8.63e-05,104020.0,104010.0,1.80708758]
[1734358600828,8.63e-05,104020.0,104010.0,1.59224102]
[1734358601534,8.63e-05,104020.0,104010.0,1.20551722]
[1734358601792,8.63e-05,104020.0,104010.0,1.59212811]
[1734358602546,8.63e-05,104020.0,104010.0,1.68641881]
[1734358602932,8.63e-05,104020.0,104010.0,1.81528911]
[1734358603177,8.63e-05,104020.0,104010.0,1.68641881]
[1734358603724,8.63e-05,104020.0,104010.0,1.81524223]
[1734358604511,8.63e-05,104020.0,104010.0,1.81520066]
[1734358605242,8.63e-05,104020.0,104010.0,1.68641881]
[1734358605424,8.63e-05,104020.0,104010.0,1.81520224]
[1734358606093,8.63e-05,104020.0,104010.0,1.82265961]
[1734358606234,8.63e-05,104020.0,104010.0,1.81454428]
[1734358608444,3e-07,104020.0,104010.0,1.58711686]
[1734358608653,3e-07,104020.0,104010.0,1.63924298]
[1734358610653,3e-07,104020.0,104010.0,1.7030449]
[1734358610850,3e-07,104020.0,104010.0,1.7127275]
[1734358611055,3e-07,104020.0,104010.0,1.7030449]
[1734358612537,3e-07,104020.0,104010.0,1.69976992]
[1734358612952,3e-07,104020.0,104010.0,1.62997611]
[1734358613152,8.63e-05,104040.0,104010.0,1.57286992]
[1734358613355,8.63e-05,104040.0,104030.0,0.81443938]
[1734358613569,8.63e-05,104040.0,104030.0,0.90873008]
[1734358613802,8.63e-05,104040.0,104030.0,0.81841869]
[1734358616070,8.63e-05,104040.0,104030.0,0.81840963]
[1734358616685,8.63e-05,104040.0,104030.0,0.6467318]
[1734358617603,8.63e-05,104040.0,104030.0,0.81840881]
[1734358617820,8.63e-05,104040.0,104030.0,0.88820262]
[1734358618030,3e-07,104040.0,104030.0,0.92473888]
[1734358618237,3e-07,104040.0,104030.0,0.94773888]
[1734358618681,3e-07,104040.0,104030.0,1.07046171]
[1734358618889,3e-07,104040.0,104030.0,0.9475289]
[1734358619108,3e-07,104040.0,104030.0,1.07046171]
[1734358619323,3e-07,104040.0,104030.0,0.9475258]
[1734358619709,3e-07,104040.0,104030.0,0.87773199]
[1734358620812,3e-07,104040.0,104030.0,0.91068841]
[1734358621020,3e-07,104040.0,104030.0,0.74810079]
[1734358621229,3e-07,104040.0,104030.0,0.88768841]
[1734358622717,3e-07,104040.0,104030.0,0.91010829]
[1734358625035,3e-07,104040.0,104030.0,0.93494399]
[1734358625636,3e-07,104040.0,104030.0,0.98764399]
[1734358627146,0.0775003,104040.0,104030.0,0.74802067]
[1734358627384,0.0775003,104040.0,104030.0,0.93580829]
[1734358627385,3e-07,104040.0,104030.0,0.93580829]
[1734358627801,3e-07,104040.0,104030.0,1.06433392]
[1734358628033,3e-07,104040.0,104030.0,0.93580829]
[1734358628247,3e-07,104040.0,104030.0,0.80505831]
[1734358628460,3e-07,104040.0,104030.0,0.8364737]
[1734358628671,3e-07,104040.0,104030.0,0.8749237]
[1734358629096,3e-07,104040.0,104030.0,0.89012962]
[1734358629354,3e-07,104040.0,104030.0,0.8749237]
[1734358629567,0.0832003,104040.0,104030.0,0.76962013]
[1734358629775,0.0832003,104040.0,104030.0,0.76961887]
[1734358629979,0.0832003,104040.0,104030.0,0.59816719]
[1734358630186,0.0832003,104040.0,104030.0,0.667961]
[1734358630598,0.0832003,104040.0,104030.0,0.83941268]
[1734358631004,0.0832003,104040.0,104030.0,0.76961887]
[1734358631245,0.0832003,104040.0,104030.0,0.667961]
[1734358631467,0.0832003,104040.0,104030.0,0.66798636]
[1734358631672,0.0832003,104040.0,104030.0,0.57369566]
[1734358631908,0.0832003,104040.0,104030.0,0.50095726]
[1734358632118,0.0832003,104040.0,104030.0,0.50097596]
[1734358632532,0.0832003,104040.0,104030.0,0.57076977]
[1734358633120,0.0832003,104040.0,104030.0,0.50097596]
[1734358633950,0.0832003,104040.0,104030.0,0.57076977]
[1734358634504,0.0832003,104040.0,104030.0,0.50097596]
[1734358635593,0.0832003,104040.0,104030.0,0.74217885]
[1734358636994,0.0832003,104040.0,104030.0,0.67238504]
[1734358637198,0.0832003,104040.0,104030.0,0.74217885]
[1734358638384,3e-07,104040.0,104030.0,0.73721681]
[1734358638387,3e-07,104040.0,104030.0,0.90083723]
[1734358638622,3e-07,104040.0,104030.0,0.90736426]
[1734358638824,3e-07,104040.0,104030.0,0.90753666]
[1734358639920,3e-07,104040.0,104030.0,0.88121582]
[1734358640938,3e-07,104040.0,104030.0,0.88155027]
[1734358641761,3e-07,104040.0,104030.0,0.83155027]
[1734358643725,3e-07,104040.0,104030.0,0.83051959]
[1734358646950,3e-07,104040.0,104030.0,1.07300349]
[1734358647583,3e-07,104040.0,104030.0,1.09224987]
[1734358648231,3e-07,104040.0,104030.0,0.71122052]
[1734358648442,3e-07,104040.0,104030.0,0.89967052]
[1734358648849,0.75548972,104050.0,104040.0,0.214146]
[1734358649052,0.75548972,104050.0,104040.0,0.51781813]
[1734358649310,0.71704572,104050.0,104040.0,0.77546636]
[1734358649447,0.65937972,104050.0,104040.0,0.77546636]
[1734358650375,0.65937972,104050.0,104040.0,0.92546636]
[1734358651553,0.65937972,104050.0,104040.0,0.94237358]
[1734358651752,0.62093572,104050.0,104040.0,0.94237358]
[1734358651994,0.58249172,104050.0,104040.0,0.94237358]
[1734358652259,0.58249172,104050.0,104040.0,0.94225989]
[1734358652672,0.56326972,104050.0,104040.0,0.94225989]
[1734358653011,0.56326972,104050.0,104040.0,0.68472535]
[1734358653212,0.56326972,104050.0,104040.0,0.99177657]
[1734358653480,0.44968973,104050.0,104040.0,0.99176305]
[1734358653638,0.44477316,104050.0,104040.0,0.73422535]
[1734358653839,0.44477316,104050.0,104040.0,0.99183478]
[1734358655730,0.38355827,104050.0,104040.0,0.99183478]
[1734358656151,0.34511427,104050.0,104040.0,0.99183478]
[1734358656788,0.26822627,104050.0,104040.0,0.99183478]
[1734358656998,0.24900427,104050.0,104040.0,0.99183478]
[1734358657435,0.13568427,104050.0,104040.0,0.99183478]
[1734358657615,0.07546,104090.0,104060.0,0.087936]
[1734358657867,0.07546,104090.0,104080.0,0.27868261]
[1734358658076,0.07546,104090.0,104080.0,0.71876952]
[1734358658284,0.07546,104090.0,104080.0,0.54719271]
[1734358658490,0.07546,104090.0,104080.0,0.57019271]
[1734358658713,6e-05,104090.0,104080.0,0.7800516]
[1734358659134,6e-05,104090.0,104080.0,0.80584119]
[1734358659335,0.00022843,104090.0,104080.0,0.80584119]
[1734358659967,0.00022843,104090.0,104080.0,0.85584119]
[1734358660173,0.00018843,104090.0,104080.0,0.75259558]
[1734358660380,0.00018843,104090.0,104080.0,0.84805779]
[1734358660586,0.00018843,104090.0,104080.0,0.67680599]
[1734358660794,0.00018843,104090.0,104080.0,0.46233498]
[1734358660795,0.00016843,104090.0,104080.0,0.46233498]
[1734358660998,0.00016843,104090.0,104080.0,0.62591121]
[1734358661248,0.00016843,104090.0,104080.0,0.7975758]
[1734358661464,0.00016843,104090.0,104080.0,0.62638867]
[1734358661672,0.00016843,104090.0,104080.0,0.67638867]
[1734358661871,0.00025463,104090.0,104080.0,0.67638867]
[1734358662075,0.00025463,104090.0,104080.0,0.62638867]
[1734358662208,0.00025463,104090.0,104080.0,0.84750939]
[1734358662437,0.00025463,104090.0,104080.0,0.84703193]
[1734358662636,0.07895463,104090.0,104080.0,0.79703193]
[1734358663299,0.07895463,104090.0,104080.0,0.79694743]
[1734358663603,0.07895463,104090.0,104080.0,0.83326046]
[1734358663979,0.07895463,104090.0,104080.0,0.81026046]
[1734358664151,0.07895463,104090.0,104080.0,0.9385972]
[1734358664554,0.07895463,104090.0,104080.0,0.72465836]
[1734358665180,0.07895463,104090.0,104080.0,0.81020119]
[1734358667467,0.07895463,104090.0,104080.0,0.9385972]
[1734358667621,0.07895463,104090.0,104080.0,0.93825427]
[1734358668410,0.07895463,104090.0,104080.0,0.94119165]
[1734358669266,0.07895463,104090.0,104080.0,1.02669474]
[1734358672043,0.04514,104100.0,104080.0,1.02669474]
[1734358672044,8.63e-05,104110.0,104100.0,0.038424]
[1734358672250,0.0816863,104110.0,104100.0,0.70957921]